Cogmind - Beta 16 @@@ ROGUE MODE // 2026.01.18 @ 19:48:49 Player: Glyb Result: Destroyed by P-80 Master with Gamma Rifle Performance ------------- Evolutions (8) 4000 Regions Visited (17) 3400 Robots Destroyed (119) 595 Value Destroyed (4268) 4268 Prototype IDs (27) 540 Alien Tech Used (6) 1200 Bonus (5390) 5390 TOTAL SCORE: 19393 Bonus ------- Follower Combat Kills 90 Met Zhirov 300 Used Core Reset Matrix 3000 Met Sigix 2000 Cogmind --------- Core Integrity 0/1450 Matter 179/300 Energy 56/100 System Corruption 17% Temperature Cool (28) Movement Rolling (100) Location -2/Testing Parts ------- > --- POWER (2) -------- (None) > --- PROPULSION (8) --- Centrium Leg Centrium Leg Armored Huge Wheel Improved Diametric Drive > --- UTILITY (9) ------ Advanced Signal Interpreter Advanced Targeting Computer Advanced Hacking Suite Advanced Hacking Suite Improved System Shield > --- WEAPON (4) ------- Nova Cannon > --- INVENTORY (5) ---- Sigix Containment Pod Peak State ------------ > --- POWER ------------ Micro Antimatter Reactor Micro Antimatter Reactor > --- PROPULSION ------- Xenon Bombardment Thruster Xenon Bombardment Thruster Xenon Bombardment Thruster Xenon Bombardment Thruster Xenon Bombardment Thruster Cooled Nuclear Pulse Thruster Cooled Nuclear Pulse Thruster Q-thruster > --- UTILITY ---------- Advanced Cooling System Medium Storage Unit Advanced Sensor Array Advanced Signal Interpreter Advanced Targeting Computer Advanced Hacking Suite Advanced Hacking Suite Improved System Shield Advanced System Shield > --- WEAPON ----------- Sigix Broadsword > --- INVENTORY -------- Armored Huge Wheel Railgun Linear Accelerator Improved Plasma Cutter Sigix Containment Pod [Rating: 134] Favorites ----------- Power Light Fission Core Engine Light Angular Momentum Engine Power Core Light Fission Core Reactor Fusion Reactor Propulsion Flexi-carbon Leg Treads Armored Treads Leg Flexi-carbon Leg Wheel Armored Huge Wheel Flight Unit Cooled Nuclear Pulse Thruster Utility Advanced Targeting Computer Device Advanced Sensor Array Storage Large Storage Unit Processor Advanced Targeting Computer Hackware Advanced Hacking Suite Protection Hardened Medium Armor Plating Weapon KE Penetrator Energy Gun Subdweller Laser Energy Cannon Nova Cannon Ballistic Gun KE Penetrator Ballistic Cannon Light Cannon Launcher Advanced Micro-nuke Launcher Special Weapon Flamer Impact Weapon Heavy Mace Slashing Weapon Power Sword Build | -11 -10 -10 -8 -7 -6 -5 -5 -5 -5 -4 -4 -4 -4 -3 -3 -2 -2 ------- Run | Yrd Mat Sub Mat Fac Fac Fac Upp Upp Zhi Pro Fac Was Fac Res Qua Res Tes Slots Evolved 16 | . . . 4 2 2 2 . . . . 2 . . 2 . 2 . Power 1 | . . . . . 1 . . . . . . . . . . . . Propulsion 6 | . . . 1 . 1 . . . . . 2 . . . . 2 . Utility 7 | . . . 2 2 . 1 . . . . . . . 2 . . . Weapon 2 | . . . 1 . . 1 . . . . . . . . . . . Parts Attached 155 | 7 7 5 24 3 27 9 5 3 6 . 9 . . 19 8 7 16 Power 17 | 1 1 1 4 . 4 . . 1 1 . . . . 2 1 . 1 Engine 9 | 1 1 1 3 . 2 . . 1 . . . . . . . . . Core 4 | . . . 1 . 2 . . . . . . . . . . . 1 Reactor 4 | . . . . . . . . . 1 . . . . 2 1 . . Propulsion 44 | 2 . 2 5 1 6 . 3 . 3 . 3 . . 7 2 6 4 Treads 1 | . . . 1 . . . . . . . . . . . . . . Leg 17 | 2 . 1 4 1 6 . 1 . . . . . . . . . 2 Wheel 7 | . . 1 . . . . 2 . . . 1 . . . . 1 2 Hover . | . . . . . . . . . . . . . . . . . . Flight 19 | . . . . . . . . . 3 . 2 . . 7 2 5 . Utility 48 | 2 3 . 6 2 9 4 2 . 2 . 5 . . 5 1 1 6 Device 22 | 1 1 . 2 2 5 2 1 . . . 1 . . 3 . . 4 Storage 8 | 1 2 . 1 . 1 . . . . . 1 . . . . . 2 Processor 9 | . . . 2 . 3 2 1 . . . 1 . . . . . . Hackware 7 | . . . 1 . . . . . . . 2 . . 2 1 1 . Protection 2 | . . . . . . . . . 2 . . . . . . . . Artifact . | . . . . . . . . . . . . . . . . . . Weapon 46 | 2 3 2 9 . 8 5 . 2 . . 1 . . 5 4 . 5 Energy Gun 4 | . 1 1 1 . . . . . . . . . . . . . 1 Energy Cannon 1 | . . . . . . . . . . . . . . . . . 1 Ballistic Gun 24 | 2 . . 5 . 7 5 . 2 . . 1 . . 2 . . . Ballistic Cannon 8 | . 2 1 . . . . . . . . . . . 2 1 . 2 Launcher 2 | . . . . . . . . . . . . . . 1 . . 1 Special Weapon 3 | . . . 2 . . . . . . . . . . . 1 . . Impact Weapon 2 | . . . 1 . . . . . . . . . . . 1 . . Slashing Weapon 2 | . . . . . 1 . . . . . . . . . 1 . . Piercing Weapon . | . . . . . . . . . . . . . . . . . . Special Melee Weapon . | . . . . . . . . . . . . . . . . . . Unidentified Prototypes 20 | . . . 2 . . 1 . . 4 . . . . 1 5 1 6 Parts Lost 73 | . 1 6 9 . 9 . 8 1 . 1 1 . 1 13 . 15 8 Power 10 | . 1 1 1 . 1 . 1 . . . . . . 2 . 1 2 Propulsion 28 | . . 3 1 . 3 . 4 . . . . . . 5 . 10 2 Utility 16 | . . . 2 . 4 . 2 . . . . . . 3 . 2 3 Weapon 19 | . . 2 5 . 1 . 1 1 . 1 1 . 1 3 . 2 1 Highest Loss Streak 13 | . 1 3 5 . 8 . 6 1 . 1 1 . 1 8 . 13 3 To Critical Strikes 2 | . . . . . . . . . . . . . 1 1 . . . Average Backups 8 | 2 3 5 8 10 11 10 11 9 13 11 9 8 7 6 8 4 1 Power . | . . . . 1 1 1 1 1 1 2 1 1 1 1 . . . Propulsion 2 | . 1 . 2 3 3 4 3 3 3 4 2 2 2 2 3 2 . Utility 3 | . 1 3 4 3 3 3 3 3 3 4 4 4 3 1 . . . Weapon 1 | . . 1 1 2 2 2 3 1 3 1 . 1 . 1 3 1 . Tool/Special . | . . . . . . . . . . . . . . . . . . Unused Backups 15 | . 1 . 1 . 10 . . . 2 . . . . . 1 . . Power . | . . . . . . . . . . . . . . . . . . Propulsion 4 | . . . . . 3 . . . 1 . . . . . . . . Utility 4 | . . . 1 . 2 . . . . . . . . . 1 . . Weapon 6 | . 1 . . . 5 . . . . . . . . . . . . Tool/Special 1 | . . . . . . . . . 1 . . . . . . . . Average Slot Usage (%) 86 | . 95 76 90 95 97 99 94 82 70 82 81 78 77 77 79 79 42 Engine 4 | . 14 4 5 7 5 5 4 3 3 . . . . . . . . Core 2 | . . . 2 . 6 5 5 5 5 5 3 . . . . . . Reactor 1 | . . . . . . . . . 1 5 4 5 5 3 5 7 1 Leg 13 | . 26 8 22 23 25 23 19 . . . . . . . . . 4 Wheel 2 | . . 6 . . . . 1 11 10 11 8 . . . . . . Flight 3 | . . . . . . . . . . . 9 21 21 20 28 29 5 Device 10 | . 14 14 8 18 13 20 10 6 8 5 4 5 6 8 9 7 . Storage 7 | . 12 14 9 7 9 11 7 5 5 5 5 5 5 4 4 3 . Processor 13 | . . . 9 15 14 7 19 23 23 23 21 21 18 13 9 8 8 Hackware 3 | . . . 5 . . . . . . . 4 5 5 13 16 17 16 Energy Gun 1 | . 4 5 1 . . . . . . . . . . . . . . Ballistic Gun 13 | . 17 . 12 15 17 23 22 22 5 17 15 15 13 5 . . . Ballistic Cannon 2 | . 4 22 . . . . . . . . . . . . . . . Impact Weapon 1 | . . . 5 7 1 . . . . . . . . . . . . Peak Build Rating 134 | 7 7 9 33 39 74 88 86 83 83 83 110 104 104 115 124 134 84 Average Rating 60 | 5 6 6 27 37 62 85 81 76 66 77 94 104 102 105 112 119 66 On Entrance 63 | . 7 7 7 33 39 74 85 66 83 83 77 104 104 101 94 118 59 Avg Prop Armor Cover (%) 21 | . . . 10 . . . . . 16 . . . . . . . 23 Naked Turns . | . . . . . . . . . . . . . . . . . . Heaviest Build 68 | 12 20 23 40 43 60 64 63 59 68 63 63 40 40 42 39 39 17 Greatest Support 84 | 20 20 20 51 51 80 76 76 56 56 56 84 42 42 44 41 51 60 Greatest Overweight (x) 13 | . 1 4 8 . . . 2 1 13 1 . . . 1 . 1 . Average Overweight (x) . | . . 1 . . . . . . . 1 . . . . . . . Largest Inventory Capacity 15 | 8 10 10 15 15 15 15 15 15 15 15 15 10 10 10 10 10 5 Average Capacity 12 | 7 8 10 10 15 15 15 15 15 15 15 13 10 10 10 10 9 5 Most Carried 15 | 3 6 10 11 12 15 15 15 12 15 12 15 9 9 10 10 10 5 Average Carried 9 | 2 3 5 8 10 13 13 14 10 14 12 9 9 8 7 9 7 4 Final Capacity 15 | 8 10 10 15 15 15 15 15 15 15 15 10 10 10 10 10 5 5 Final Carried 15 | 3 6 7 11 12 15 15 12 11 12 12 9 9 7 8 10 4 2 Class Distribution -------------------- 37% | Mutant 35% | Gunner 11% | Hacker-Sprinter 5% | Sprinter 4% | Scavenger-Gunner 3% | Skirmisher Dominant Class ---------------- Mutant | -10/Materials Mutant | -10/Subcaves Mutant | -8/Materials Mutant | -7/Factory Mutant | -6/Factory Skirmisher | -5/Factory Gunner | -5/Upper Caves Gunner | -5/Upper Caves Mutant | -5/Zhirov Gunner | -4/Proximity Caves Gunner | -4/Factory Sprinter | -4/Waste Sprinter | -4/Factory Hacker-Sprinter | -3/Research Hacker-Sprinter | -3/Quarantine Hacker-Sprinter | -2/Research Hacker-Mutant | -2/Testing Resources | -11 -10 -10 -8 -7 -6 -5 -5 -5 -5 -4 -4 -4 -4 -3 -3 -2 -2 ----------- Run | Yrd Mat Sub Mat Fac Fac Fac Upp Upp Zhi Pro Fac Was Fac Res Qua Res Tes Matter Collected 4567 | 277 194 124 504 45 595 . 616 222 . 303 295 . 296 500 194 291 111 Remotely 3 | . . . . . . . . . . . . . . . . . 3 Salvage Created 4508 | 73 294 70 736 45 242 . 559 230 . 192 552 . 208 808 44 381 74 Parts 264 | 4 29 7 51 4 8 . 39 14 . 10 30 . 10 33 . 15 10 Haulers Intercepted 1 | . . . . . 1 . . . . . . . . . . . . Recyclers Shooed 4 | . 1 . 1 . . . . . . . . . 1 . . . 1 Parts Field Recycled . | . . . . . . . . . . . . . . . . . . Retrieved Matter . | . . . . . . . . . . . . . . . . . . Parts Self-Destructed 74 | . . 7 . . . . 43 14 . 10 . . . . . . . Prevented . | . . . . . . . . . . . . . . . . . . Parts Restored . | . . . . . . . . . . . . . . . . . . Kills | -11 -10 -10 -8 -7 -6 -5 -5 -5 -5 -4 -4 -4 -4 -3 -3 -2 -2 ------- Run | Yrd Mat Sub Mat Fac Fac Fac Upp Upp Zhi Pro Fac Was Fac Res Qua Res Tes Combat Hostiles Destroyed 86 | . 6 4 22 1 2 . 13 6 . 7 5 . 2 12 . 3 3 Melee 8 | . . . . . . . . . . . . . 1 4 . 3 . Guns 58 | . 6 . 15 1 2 . 13 6 . 7 5 . 1 2 . . . Cannons 11 | . . 4 6 . . . . . . . . . . 1 . . . AOE 8 | . . . . . . . . . . . . . . 5 . . 3 Classes Destroyed 16 | 2 5 1 4 . 2 . 1 . . 1 . . . . . . . Worker 4 | . 2 . 1 . . . . . . . . . . 1 . . . Builder 8 | . 1 . 1 . 1 . . . . . 1 . . . . . 4 Tunneler 3 | 1 1 . . . . . . . . . . . . 1 . . . Hauler 1 | . . . . . 1 . . . . . . . . . . . . Recycler 6 | 1 . . . . . . . . . . 1 . . 2 . 2 . Operator 3 | . 2 . . . . . . . . . 1 . . . . . . Drone 2 | . . . . . . . . . . 2 . . . . . . . Watcher 8 | . . . 1 . . . . . . . . . 3 2 1 1 . Swarmer 34 | . 3 3 7 . . . 7 4 . 4 . . . 3 . 3 . Cutter 2 | . . . 2 . . . . . . . . . . . . . . Grunt 21 | . 3 . 5 . . . 2 2 . . 3 . . 6 . . . Duelist 1 | . . . 1 . . . . . . . . . . . . . . Sentry 14 | . . 1 6 . . . 2 . . 1 2 . . 2 . . . Hunter 3 | . . . 1 1 1 . . . . . . . . . . . . Programmer 8 | . . . . . . . 2 . . . . . 2 1 . . 3 Behemoth 1 | . . . . . 1 . . . . . . . . . . . . Best Kill Streak 10 | 2 4 4 5 1 2 . 5 4 . 4 3 . 1 10 1 5 7 Combat Bots Only 6 | . 3 4 4 1 1 . 5 4 . 4 3 . 1 6 . 3 3 Max Kills in Single Turn 4 | 1 2 2 2 1 1 . 2 1 . 3 1 . 1 3 1 1 4 Gunslinging 1 | . . . . . . . 1 . . . . . . . . . . Exploded 2 | . . . . . . . . . . . . . . 1 . . 2 Melee 1 | . . . . . . . . . . . . . 1 1 . 1 . Uniques/NPCs Destroyed . | . . . . . . . . . . . . . . . . . . Combat | -11 -10 -10 -8 -7 -6 -5 -5 -5 -5 -4 -4 -4 -4 -3 -3 -2 -2 -------- Run | Yrd Mat Sub Mat Fac Fac Fac Upp Upp Zhi Pro Fac Was Fac Res Qua Res Tes Hostile Shots Fired 967 | . 42 38 192 4 66 . 89 44 . 5 39 . 43 91 8 179 127 Missed 387 | . 19 10 64 1 19 . 30 17 . . 10 . 21 37 6 97 56 Hits 580 | . 23 28 128 3 47 . 59 27 . 5 29 . 22 54 2 82 71 Melee 3 | . . . 3 . . . . . . . . . . . . . . Projectile 577 | . 23 28 125 3 47 . 59 27 . 5 29 . 22 54 2 82 71 AOE 8 | . . 5 2 . . . . . . . . . . . . . 1 Critical Strikes 28 | . . 1 6 . 4 . 4 1 . . 2 . 1 3 . 3 3 Part Disruptions 1 | . . . . . . . . . . . . . 1 . . . . Damage Taken 12212 | . 277 701 1750 41 1448 . 1089 431 . 98 575 . 454 1269 45 1921 2113 Core 2925 | . 11 99 341 . 357 . 60 86 . 39 94 . 108 269 . 639 822 Absorbed by Shields . | . . . . . . . . . . . . . . . . . . Regen/Repaired (Parts) 336 | . . . 95 . . . . . . . . . . . 35 206 . Core Remaining (%) 74 | 100 . 56 38 100 58 . . . . 81 . . 82 . 79 . . Volleys Fired 289 | 5 34 11 74 4 24 . 21 11 . 9 21 . 13 48 2 1 11 Largest 4 | 2 2 2 3 2 3 . 4 4 . 4 4 . 3 2 1 1 1 Hottest 223 | 40 60 60 223 48 90 . 132 132 . 132 134 . 101 66 54 20 113 Shots Fired 610 | 10 62 21 134 8 59 . 81 43 . 28 67 . 32 52 2 1 10 Gun 510 | 10 62 . 98 8 59 . 81 43 . 28 67 . 32 22 . . . Cannon 51 | . . 21 5 . . . . . . . . . . 17 2 . 6 Launcher 17 | . . . . . . . . . . . . . . 13 . . 4 Special 32 | . . . 31 . . . . . . . . . . . . 1 . Kinetic 527 | 10 38 21 97 8 59 . 81 43 . 28 67 . 32 39 2 . 2 Thermal 66 | . 24 . 37 . . . . . . . . . . . . 1 4 Explosive 17 | . . . . . . . . . . . . . . 13 . . 4 Electromagnetic . | . . . . . . . . . . . . . . . . . . Robot Hit Streak 16 | 6 6 11 12 5 13 . 6 4 . 8 14 . 8 16 . . 2 Robot Miss Streak 8 | 1 3 4 5 1 2 . 8 5 . 8 2 . 4 4 . . 2 Penetration Max 1 | . . . . . . . 1 . . 1 1 . 1 . . . . Secondary Targets 13 | . 1 . 3 . . . 5 2 . 1 1 . . . . . . Max Gunslinging Chain 1 | . 1 . 1 . . . 1 1 . 1 1 . . . . . . Shots Hit Robots 404 | 7 38 13 94 6 44 . 40 18 . 13 50 . 22 45 2 8 4 Core Hits 208 | 4 17 5 45 3 13 . 23 10 . 9 19 . 10 34 1 4 11 Critical Kills 11 | . . . . . . . 2 1 . 1 2 . 2 3 . . . Critical Parts Destroyed 11 | . . . . . . . 2 1 . 3 2 . . 3 . . . Critical Strikes 29 | . . . 3 . . . 4 2 . 4 4 . 2 10 . . . Burn 3 | . . . 3 . . . . . . . . . . . . . . Destroy 22 | . . . . . . . 4 2 . 4 4 . 2 6 . . . Blast 3 | . . . . . . . . . . . . . . 3 . . . Sever 1 | . . . . . . . . . . . . . . 1 . . . Melee Attacks 45 | . . . . . 1 . . . . . 2 . 5 14 8 15 . Impact . | . . . . . . . . . . . . . . . . . . Slashing 45 | . . . . . 1 . . . . . 2 . 5 14 8 15 . Piercing . | . . . . . . . . . . . . . . . . . . Sneak Attacks 6 | . . . . . 1 . . . . . 2 . . . . 3 . Combat Hostiles . | . . . . . . . . . . . . . . . . . . Follow-up Attacks . | . . . . . . . . . . . . . . . . . . Damage Inflicted 12611 | 67 522 238 1504 76 1230 . 1260 418 . 345 1483 . 584 2817 243 793 1031 Guns 7019 | 67 522 . 1211 76 1149 . 1260 418 . 345 1322 . 466 183 . . . Cannons 1055 | . . 238 63 . . . . . . . . . . 554 . . 200 Explosions 2444 | . . . . . . . . . . . . . . 1623 . . 821 Melee 1853 | . . . . . 81 . . . . . 161 . 118 457 243 793 . Ramming 10 | . . . . . . . . . . . . . . . . . 10 Kinetic 7721 | 67 371 238 1215 76 1149 . 1260 418 . 345 1322 . 466 737 . . 57 Thermal 583 | . 151 . 289 . . . . . . . . . . . . . 143 Explosive 2444 | . . . . . . . . . . . . . . 1623 . . 821 Electromagnetic . | . . . . . . . . . . . . . . . . . . Impact . | . . . . . . . . . . . . . . . . . . Slashing 1853 | . . . . . 81 . . . . . 161 . 118 457 243 793 . Piercing . | . . . . . . . . . . . . . . . . . . Highest Corruption 16 | . . . 1 . . . 2 2 2 2 . . 1 3 3 1 16 Average Corruption 2 | . . . 1 . . . 1 2 2 2 . . 1 2 2 1 8 Corruption Purged . | . . . . . . . . . . . . . . . . . . Corruption Blocked . | . . . . . . . . . . . . . . . . . . Effects 46 | . . . 7 . . . 3 10 4 4 . . 3 3 3 . 9 Message Errors 11 | . . . 3 . . . . 4 2 1 . . . . . . 1 Matter Fused 12 | . . . 2 . . . 1 2 1 2 . . . 1 2 . 1 Heat Flow Errors 6 | . . . 1 . . . 1 1 . . . . . . . . 3 Energy Discharges 5 | . . . 1 . . . 1 . . 1 . . . . 1 . 1 Data Loss (minor) 6 | . . . . . . . . 2 1 . . . 1 1 . . 1 Data Loss (major) 3 | . . . . . . . . 1 . . . . 2 . . . . Misdirections 1 | . . . . . . . . . . . . . . . . . 1 Weapon Failures 2 | . . . . . . . . . . . . . . 1 . . 1 Overload Shots . | . . . . . . . . . . . . . . . . . . Overflow Damage 397 | . . . . . . . . . . . 61 . 28 23 58 210 17 Projectiles . | . . . . . . . . . . . . . . . . . . Explosions 25 | . . . . . . . . . . . . . . 8 . . 17 Melee 372 | . . . . . . . . . . . 61 . 28 15 58 210 . Knockbacks 4 | . . 3 1 . . . . . . . . . . . . . . Impact . | . . . . . . . . . . . . . . . . . . Kinetic 4 | . . 3 1 . . . . . . . . . . . . . . Secondary . | . . . . . . . . . . . . . . . . . . Self-Inflicted Damage 5 | . . . . . . . . . . . . . . . . . 5 Shots . | . . . . . . . . . . . . . . . . . . Rammed 1 | . . . . . . . . . . . . . . . . . 1 Targets Rammed 1 | . . . . . . . . . . . . . . . . . 1 Kicked . | . . . . . . . . . . . . . . . . . . Crushed . | . . . . . . . . . . . . . . . . . . Highest Temperature 486 | . 67 2 486 . 28 . 413 304 . 240 405 . 93 7 . 7 115 Average Temperature 102 | . 32 2 127 . 7 . 171 116 . 102 138 . 27 3 . 3 41 Received Heat Transfer 1609 | . 108 72 585 . 180 . 198 69 . . 145 . 12 60 . 144 36 Effects 9 | . . . 4 . . . 3 . . . 2 . . . . . . Shutdowns 4 | . . . 1 . . . 2 . . . 1 . . . . . . Energy Bleed 1 | . . . . . . . 1 . . . . . . . . . . Matter Decay 1 | . . . . . . . . . . . 1 . . . . . . Damage (major) 3 | . . . 3 . . . . . . . . . . . . . . Siege Activations . | . . . . . . . . . . . . . . . . . . Martial Activations . | . . . . . . . . . . . . . . . . . . Shielding Activations . | . . . . . . . . . . . . . . . . . . Robots Disrupted 1 | . . . 1 . . . . . . . . . . . . . . Combat Hostiles 1 | . . . 1 . . . . . . . . . . . . . . Robots Corrupted . | . . . . . . . . . . . . . . . . . . Combat Hostiles . | . . . . . . . . . . . . . . . . . . Parts Fried 2 | . . . . . . . . . . . . . . . . . 2 Impact Corruptions . | . . . . . . . . . . . . . . . . . . Robots Melted 1 | . . . 1 . . . . . . . . . . . . . . Combat Hostiles 1 | . . . 1 . . . . . . . . . . . . . . Parts Melted 7 | . . . 6 . . . . . . . . . 1 . . . . Heat Transferred 2708 | . 350 . 2247 . . . . . . . . . . . . . 111 Parts Sabotaged . | . . . . . . . . . . . . . . . . . . Parts Stolen . | . . . . . . . . . . . . . . . . . . Parts Stripped . | . . . . . . . . . . . . . . . . . . Power Chain Reactions . | . . . . . . . . . . . . . . . . . . Alert | -11 -10 -10 -8 -7 -6 -5 -5 -5 -5 -4 -4 -4 -4 -3 -3 -2 -2 ------- Run | Yrd Mat Sub Mat Fac Fac Fac Upp Upp Zhi Pro Fac Was Fac Res Qua Res Tes Maximum Alert Level 2 | . . . . . . . . . . . 1 . . 1 1 2 1 Low Security (%) 80 | 100 100 . 100 100 100 100 . . . . 42 100 100 58 . 27 . Level 1 19 | . . . . . . . . . . . 57 . . 41 100 65 100 Level 2 . | . . . . . . . . . . . . . . . . 6 . Level 3 . | . . . . . . . . . . . . . . . . . . Level 4 . | . . . . . . . . . . . . . . . . . . Level 5 . | . . . . . . . . . . . . . . . . . . High Security . | . . . . . . . . . . . . . . . . . . Max Security . | . . . . . . . . . . . . . . . . . . Peak Influence 593 | 5 75 . 143 55 35 . . . . . 316 68 95 399 293 593 395 Initial 330 | . . . . 55 . . . . . . 300 68 47 34 211 154 330 Average 89 | . 17 . 74 16 5 . . . . . 204 68 36 161 254 270 329 Influence Increases 4170 | 10 196 90 644 30 156 . 340 140 . 120 512 . 193 648 184 694 213 Destroy 0b10 Robot/C 1720 | . 120 80 440 20 80 . 260 120 . 100 100 . 40 240 . 60 60 Destroy 0b10 Robot/NC 185 | 10 30 . 15 . 20 . . . . 10 15 . 15 30 5 15 20 Destroy Leader 370 | . 30 10 122 10 44 . 20 20 . 10 30 . 16 44 2 12 . Allied During Kill 6 | . . . . . 6 . . . . . . . . . . . . Successful Hack 133 | . 16 . 21 . 5 . . . . . 19 . . . 40 16 16 Disable Machine 90 | . . . . . . . . . . . 15 . . . 75 . . Destroy Structure 286 | . . . 1 . 1 . . . . . 18 . 2 184 2 6 72 Advance Influence 300 | . . . . . . . . . . . 300 . . . . . . Partial Spotted 105 | . . . . . . . . . . . 15 . 30 . 15 45 . Lose Combat Pursuer 975 | . . . 45 . . . 60 . . . . . 90 150 45 540 45 Influence Decreases 3867 | 10 196 90 521 153 156 . 313 141 26 120 316 128 194 339 285 381 498 Entered New Map 826 | . . . . 68 . . . 6 26 . . 128 21 33 165 121 258 Time Decay 2344 | 10 186 60 451 80 134 . 243 125 . 110 206 . 163 186 120 110 160 Search Patrol Dispatched 100 | . . . . . . . . . . . 100 . . . . . . Lost Part 580 | . 10 30 70 . 10 . 70 10 . 10 10 . 10 120 . 150 80 Lost Ally 17 | . . . . 5 12 . . . . . . . . . . . . Squads Dispatched 35 | . 3 . 2 2 2 . . . . . 3 . 6 7 1 7 2 Investigation 6 | . . . . 1 . . . . . . . . 2 2 . 1 . Extermination 10 | . . . . . 2 . . . . . 1 . 1 2 1 2 1 Reinforcement 17 | . 3 . 2 1 . . . . . . 2 . 1 3 . 4 1 Assault 2 | . . . . . . . . . . . . . 2 . . . . Garrison . | . . . . . . . . . . . . . . . . . . Intercept . | . . . . . . . . . . . . . . . . . . Searches Triggered 1 | . . . . . . . . . . . 1 . . . . . . Construction Impeded 1 | . . . . . . . . . . . 1 . . . . . . Haulers Reinforced 1 | . . . . . . . . . . . . . . 1 . . . Active Scanning Responses . | . . . . . . . . . . . . . . . . . . Cargo Convoy Interrupts . | . . . . . . . . . . . . . . . . . . Stealth | -11 -10 -10 -8 -7 -6 -5 -5 -5 -5 -4 -4 -4 -4 -3 -3 -2 -2 --------- Run | Yrd Mat Sub Mat Fac Fac Fac Upp Upp Zhi Pro Fac Was Fac Res Qua Res Tes Distress Signals 16 | . 1 . 4 . 2 . . . . . . . 3 2 . 4 . Communications Jammed . | . . . . . . . . . . . . . . . . . . Distress Signals . | . . . . . . . . . . . . . . . . . . Times Spotted 242 | . 13 8 43 3 13 . 17 7 . 4 9 4 14 21 6 66 14 Peak Tracking Total 30 | . 3 4 7 2 3 . 5 4 . 2 5 6 9 8 3 30 7 Tactical Retreats 18 | . . . 1 . . . 2 . . . . . 3 3 1 7 1 Traps | -11 -10 -10 -8 -7 -6 -5 -5 -5 -5 -4 -4 -4 -4 -3 -3 -2 -2 ------- Run | Yrd Mat Sub Mat Fac Fac Fac Upp Upp Zhi Pro Fac Was Fac Res Qua Res Tes Traps Triggered 13 | . 1 2 1 . 1 . . . . . 1 . 2 2 . 1 2 Indirectly . | . . . . . . . . . . . . . . . . . . Trap Hack Attempts . | . . . . . . . . . . . . . . . . . . Triggered . | . . . . . . . . . . . . . . . . . . Disarmed . | . . . . . . . . . . . . . . . . . . Reprogrammed 4 | . . . 4 . . . . . . . . . . . . . . Reused . | . . . . . . . . . . . . . . . . . . Traps Extracted . | . . . . . . . . . . . . . . . . . . Installed . | . . . . . . . . . . . . . . . . . . Triggered . | . . . . . . . . . . . . . . . . . . Machines | -11 -10 -10 -8 -7 -6 -5 -5 -5 -5 -4 -4 -4 -4 -3 -3 -2 -2 ---------- Run | Yrd Mat Sub Mat Fac Fac Fac Upp Upp Zhi Pro Fac Was Fac Res Qua Res Tes Machines Disabled 7 | . . . . . . . . . . . 1 . . . 5 . 1 Max in Single Turn 1 | . . . . . . . . . . . 1 . . . 1 . 1 Garrison Access 3 | . . . . . 1 . . . . . . . 2 . . . . Machines Repaired . | . . . . . . . . . . . . . . . . . . Machines Dismantled . | . . . . . . . . . . . . . . . . . . Machines Sabotaged . | . . . . . . . . . . . . . . . . . . Overloaded Fab Kills . | . . . . . . . . . . . . . . . . . . Hacking | -11 -10 -10 -8 -7 -6 -5 -5 -5 -5 -4 -4 -4 -4 -3 -3 -2 -2 --------- Run | Yrd Mat Sub Mat Fac Fac Fac Upp Upp Zhi Pro Fac Was Fac Res Qua Res Tes Machines Accessed 59 | . 6 1 7 2 5 . 2 2 8 . 4 . 2 4 8 3 5 Terminals 36 | . 6 . 5 1 2 . . 1 . . 4 . 1 2 8 2 4 Fabricators 1 | . . . . . . . . . . . . . . 1 . . . Repair Stations 2 | . . . 1 . . . . . . . . . . . . 1 . Recycling Units 2 | . . . . . 2 . . . . . . . . . . . . Scanalyzers 3 | . . . 1 . . . . . . . . . . 1 . . 1 Garrison Access 3 | . . . . 1 1 . . . . . . . 1 . . . . Total Hacks 185 | . 19 4 29 5 9 . 6 2 43 . 7 . 6 14 19 8 14 Successful 114 | . 8 4 20 . 4 . 6 2 43 . 2 . 1 4 10 4 6 Failed 70 | . 11 . 8 5 5 . . . . . 5 . 5 10 9 4 8 Catastrophic 6 | . 1 . . 1 1 . . . . . 2 . . . . 1 . Database Lockouts 1 | . . . 1 . . . . . . . . . . . . . . Manual 69 | . 19 . 20 . 4 . . . . . 6 . 2 1 8 2 7 Terminals 94 | . 19 . 23 1 4 . . 1 . . 7 . 2 3 19 3 12 Fabricators 3 | . . . . . . . . . . . . . . 3 . . . Repair Stations 9 | . . . 4 . . . . . . . . . . . . 5 . Recycling Units 3 | . . . . . 3 . . . . . . . . . . . . Scanalyzers 12 | . . . 2 . . . . . . . . . . 8 . . 2 Garrison Access 10 | . . . . 4 2 . . . . . . . 4 . . . . Terminal Hacks 85 | . 2 4 10 . . . 6 2 43 . 1 . . . 10 2 5 Record 53 | . . 4 . . . . 5 2 35 . . . . . 5 . 2 Part Schematic 5 | . . . . . . . . . 4 . . . . . . . 1 Prototype ID Bank 4 | . . . . . . . . . 4 . . . . . . . . Open Door 3 | . . . . . . . 1 . . . . . . . 1 . 1 Open DSF 1 | . . . . . . . . . . . . . . . . 1 . Level Access Points 2 | . . . . . . . . . . . 1 . . . 1 . . Branch Access Points 3 | . . . 2 . . . . . . . . . . . . 1 . Terminal Index 2 | . 1 . . . . . . . . . . . . . . . 1 Alert Level 4 | . . . 3 . . . . . . . . . . . 1 . . Locate Traps 2 | . . . 2 . . . . . . . . . . . . . . Reprogram Traps 1 | . . . 1 . . . . . . . . . . . . . . Recall Reinforcements 1 | . 1 . . . . . . . . . . . . . . . . Registered Components 1 | . . . . . . . . . . . . . . . 1 . . Zone Layout 3 | . . . 2 . . . . . . . . . . . 1 . . Fabricator Hacks 2 | . . . . . . . . . . . . . . 2 . . . Load Schematic 1 | . . . . . . . . . . . . . . 1 . . . Build 1 | . . . . . . . . . . . . . . 1 . . . Repair Station Hacks 6 | . . . 4 . . . . . . . . . . . . 2 . Scan Component 4 | . . . 2 . . . . . . . . . . . . 2 . Repair 2 | . . . 2 . . . . . . . . . . . . . . Recycling Unit Hacks 2 | . . . . . 2 . . . . . . . . . . . . Retrieve Matter 2 | . . . . . 2 . . . . . . . . . . . . Scanalyzer 4 | . . . 1 . . . . . . . . . . 2 . . 1 Insert Component 1 | . . . . . . . . . . . . . . 1 . . . Analyze 1 | . . . . . . . . . . . . . . 1 . . . Retrieve Study 2 | . . . 1 . . . . . . . . . . . . . 1 Garrison Access Hacks 2 | . . . . . 1 . . . . . . . 1 . . . . Seal Access 2 | . . . . . 1 . . . . . . . 1 . . . . Unauthorized Hacks 13 | . 6 . 5 . 1 . . . . . 1 . . . . . . Terminals 13 | . 6 . 5 . 1 . . . . . 1 . . . . . . Assimilate 3 | . 1 . 2 . . . . . . . . . . . . . . Botnet 8 | . 4 . 2 . 1 . . . . . 1 . . . . . . Operators 2 | . 1 . 1 . . . . . . . . . . . . . . Fabricators . | . . . . . . . . . . . . . . . . . . Repair Stations . | . . . . . . . . . . . . . . . . . . Recycling Units . | . . . . . . . . . . . . . . . . . . Scanalyzers . | . . . . . . . . . . . . . . . . . . Garrison Access . | . . . . . . . . . . . . . . . . . . Data Cores Recovered . | . . . . . . . . . . . . . . . . . . Used . | . . . . . . . . . . . . . . . . . . Hacking Detections 32 | . 6 . 3 2 3 . . . . . 2 . 2 3 4 2 5 Full Trace Events 6 | . 1 . 1 1 . . . . . . . . 1 1 . 1 . Feedback Events . | . . . . . . . . . . . . . . . . . . Feedback Blocked . | . . . . . . . . . . . . . . . . . . Robot Schematics Acquired 2 | . . . . . . . . . . . . . . . . . 2 Robots Built . | . . . . . . . . . . . . . . . . . . Authchips . | . . . . . . . . . . . . . . . . . . Time . | . . . . . . . . . . . . . . . . . . Total Robot Build Rating . | . . . . . . . . . . . . . . . . . . Part Schematics Acquired 8 | . . . . . . . . . 4 . . . . 1 . . 3 Parts Built 1 | . . . . . . . . . . . . . . 1 . . . Authchips . | . . . . . . . . . . . . . . . . . . Time 169 | . . . . . . . . . . . . . . 169 . . . Total Part Build Rating 6 | . . . . . . . . . . . . . . 6 . . . Part Studies Acquired 2 | . . . 1 . . . . . . . . . . . . . 1 Parts Repaired 2 | . . . 2 . . . . . . . . . . . . . . Time 76 | . . . 76 . . . . . . . . . . . . . . Parts Recycled . | . . . . . . . . . . . . . . . . . . Recycled Matter . | . . . . . . . . . . . . . . . . . . Retrieved Matter . | . . . . . . . . . . . . . . . . . . Retrieved Components . | . . . . . . . . . . . . . . . . . . Parts Scanalyzed 1 | . . . . . . . . . . . . . . 1 . . . Part Schematics Acquired 1 | . . . . . . . . . . . . . . 1 . . . Parts Damaged . | . . . . . . . . . . . . . . . . . . Bothacking | -11 -10 -10 -8 -7 -6 -5 -5 -5 -5 -4 -4 -4 -4 -3 -3 -2 -2 ------------ Run | Yrd Mat Sub Mat Fac Fac Fac Upp Upp Zhi Pro Fac Was Fac Res Qua Res Tes Used RIF Installer . | . . . . . . . . . . . . . . . . . . Robots Hacked . | . . . . . . . . . . . . . . . . . . Non-combat . | . . . . . . . . . . . . . . . . . . Combat . | . . . . . . . . . . . . . . . . . . Robot Hacks Applied . | . . . . . . . . . . . . . . . . . . Relay Couplers Released 3 | . . . . . . . . . . . . . 3 . . . . Machine Destruction 3 | . . . . . . . . . . . . . 3 . . . . Fabnet Peak Effective % . | . . . . . . . . . . . . . . . . . . Robots Rewired 1 | . . . . . 1 . . . . . . . . . . . . Allies Hacked . | . . . . . . . . . . . . . . . . . . Hacks Repelled . | . . . . . . . . . . . . . . . . . . Allies | -11 -10 -10 -8 -7 -6 -5 -5 -5 -5 -4 -4 -4 -4 -3 -3 -2 -2 -------- Run | Yrd Mat Sub Mat Fac Fac Fac Upp Upp Zhi Pro Fac Was Fac Res Qua Res Tes Total Allies 2 | . . . 1 . 1 . . . . . . . . . . . . Largest Group 1 | . . . 1 1 1 . . . . . . . . . . . . Highest-Rated Group 41 | . . . 10 10 41 . . . . . . . . . . . . Highest-Rated Ally 41 | . . . 10 10 41 . . . . . . . . . . . . Total Orders 2 | . . . 1 1 . . . . . . . . . . . . . ROAM 1 | . . . . 1 . . . . . . . . . . . . . FOLLOW 1 | . . . 1 . . . . . . . . . . . . . . Ally Attacks 9 | . . . . . 9 . . . . . . . . . . . . Total Damage 316 | . . . . . 316 . . . . . . . . . . . . Kills 4 | . . . . . 4 . . . . . . . . . . . . Allies Corrupted . | . . . . . . . . . . . . . . . . . . Allies Melted . | . . . . . . . . . . . . . . . . . . Intel | -11 -10 -10 -8 -7 -6 -5 -5 -5 -5 -4 -4 -4 -4 -3 -3 -2 -2 ------- Run | Yrd Mat Sub Mat Fac Fac Fac Upp Upp Zhi Pro Fac Was Fac Res Qua Res Tes Active Infowar (turns) 8655 | 18 787 1055 157 202 1280 199 1606 577 298 601 429 19 384 614 243 186 . Optics 1115 | . . . . 201 914 . . . . . . . . . . . . Sensors 5713 | . . . . 202 383 199 1606 577 298 601 429 19 384 586 243 186 . IFF 562 | . . . . . 562 . . . . . . . . . . . . Structural 1547 | . 335 1055 157 . . . . . . . . . . . . . . Seismic 470 | 18 452 . . . . . . . . . . . . . . . . Triangulation 214 | . . . . . . . . . . . . . . 168 46 . . Robot Analysis Total . | . . . . . . . . . . . . . . . . . . Derelict Logs Recovered 5 | . . 1 . . . . 2 2 . . . . . . . . . Drone Launches . | . . . . . . . . . . . . . . . . . . Drone Recoveries . | . . . . . . . . . . . . . . . . . . Exploration | -11 -10 -10 -8 -7 -6 -5 -5 -5 -5 -4 -4 -4 -4 -3 -3 -2 -2 ------------- Run | Yrd Mat Sub Mat Fac Fac Fac Upp Upp Zhi Pro Fac Was Fac Res Qua Res Tes Turns Passed 10332 | 98 787 1055 1294 271 1306 199 1606 577 298 601 434 19 384 614 243 222 324 Spaces Moved 10178 | 63 496 684 682 199 950 149 1294 481 236 497 525 68 963 983 730 695 483 Core 48 | 7 25 7 8 . . . . . 1 . . . . . . . . Treads 9 | . . . 9 . . . . . . . . . . . . . . Legs 3883 | 56 471 292 618 199 950 149 1085 . . . . . . . . . 63 Wheels 2127 | . . 385 47 . . . 209 481 234 497 222 . . . . . 52 Hover . | . . . . . . . . . . . . . . . . . . Flight 4111 | . . . . . . . . . 1 . 303 68 963 983 730 695 368 Fastest Speed 17 | 50 100 95 100 126 120 120 100 100 100 115 28 28 28 23 19 17 30 Average Speed 82 | 112 118 129 134 128 121 120 117 110 107 115 58 28 28 26 22 21 54 Slowest Speed 700 | 120 120 250 450 130 125 120 260 115 700 115 100 28 28 102 23 107 120 Overloaded Moves 4 | . . . . . . . . . . . . . . . 4 . . Propulsion Burnouts . | . . . . . . . . . . . . . . . . . . Robots Hopped 29 | . . . . . . . . . . . 1 . 10 5 1 11 1 Potential Cave-ins 4 | . . 2 . . . . . . . . . . . 2 . . . Cave-ins Triggered . | . . . . . . . . . . . . . . . . . . Exploration Rate (%) 40 | 4 59 40 46 6 25 3 97 58 62 65 15 61 28 17 79 24 41 Regions Visited 17 Branch Regions 7 Pre-discovered Areas 5 | . . . . . . . 2 . 3 . . . . . . . . Known Exits Taken 10 | . . . . . 1 1 1 1 1 1 . . 1 1 1 1 . Unknown Exits Taken 5 | 1 1 1 1 1 . . . . . . . . . . . . . Scrap Searched 11 | . . 3 . . . . 5 1 . 2 . . . . . . . Spaces Dug 4 | . . . . . . . . . . . . . 1 . 1 2 . Terrain Destroyed 201 | . . . . . . . 27 10 . 1 8 . 1 122 1 2 29 Melee 4 | . . . . . . . . . . . . . 1 . 1 2 . Projectile 50 | . . . . . . . 27 9 . 1 8 . . 3 . . 2 AOE 146 | . . . . . . . . . . . . . . 119 . . 27 Terrain Rammed . | . . . . . . . . . . . . . . . . . . Walls Destroyed . | . . . . . . . . . . . . . . . . . . Machines Disabled . | . . . . . . . . . . . . . . . . . . Actions | -11 -10 -10 -8 -7 -6 -5 -5 -5 -5 -4 -4 -4 -4 -3 -3 -2 -2 --------- Run | Yrd Mat Sub Mat Fac Fac Fac Upp Upp Zhi Pro Fac Was Fac Res Qua Res Tes Total 11497 | 78 632 830 909 207 1062 170 1329 497 286 506 604 67 1031 1250 786 722 531 Wait 560 | . 80 123 105 . 11 . . . . . 12 . 44 165 13 2 5 Move 10108 | 62 495 683 681 198 949 148 1293 480 235 496 523 67 942 972 727 676 481 Hop 25 | . . . . . . . . . . . 1 . 10 5 1 7 1 Pick Up 91 | 4 6 6 13 2 21 4 2 2 7 . 7 . . 13 3 1 . Fast Attach 83 | 6 2 . 13 . 8 1 2 1 8 . 2 . . 9 10 4 17 Attach 78 | 1 4 5 5 2 9 2 3 3 7 . 13 . 1 13 2 6 2 Detach 40 | . 2 1 . . . 1 2 . 9 . 9 . . 3 7 2 4 Swap 56 | . 4 . 10 1 14 7 1 . 2 . 6 . 1 3 4 3 . Drop 96 | . 5 1 8 . 24 7 2 . 13 . 8 . . 5 9 5 9 Fire 289 | 5 34 11 74 4 24 . 21 11 . 9 21 . 13 48 2 1 11 Melee 45 | . . . . . 1 . . . . . 2 . 5 14 8 15 . Ram 1 | . . . . . . . . . . . . . . . . . 1 Kick . | . . . . . . . . . . . . . . . . . . Crush . | . . . . . . . . . . . . . . . . . . Escape Stasis 15 | . . . . . . . . . . . . . 15 . . . . Rewire 10 | . . . . . 1 . 3 . 5 1 . . . . . . . Trap . | . . . . . . . . . . . . . . . . . . Miscellaneous . | . . . . . . . . . . . . . . . . . . Route ------- -11/Scrapyard -10/Materials (discovered 3 exits: [*Mat x2] / *Sub) -10/Subcaves -8/Materials -7/Factory -6/Factory -5/Factory (discovered 2 exits: *Fac / *Upp) -5/Upper Caves -5/Upper Caves -5/Zhirov -4/Proximity Caves -4/Factory (discovered 5 exits: Res x4 / Arm) -4/Waste -4/Factory -3/Research -3/Quarantine -2/Research (discovered 2 exits: *Tes x2) -2/Testing History --------- Turn | Location | Event 24 | -11/Scrapyard | Discovered new exit (range 16) 99 | -11/Scrapyard | Entered Materials 264 | -10/Materials | Discovered new exit (range 16) 311 | -10/Materials | Build established: Mutant 771 | -10/Materials | Discovered new exit (range 12) 856 | -10/Materials | Discovered new exit (range 5) 886 | -10/Materials | Entered Subcaves 891 | -10/Subcaves | Learned Materials terminal intel 1051 | -10/Subcaves | Lost 3 parts (1p2n) 1404 | -10/Subcaves | Disturbed a concealed Subdweller 1407 | -10/Subcaves | Ambushed by Subdweller buried in earth 1814 | -10/Subcaves | Visited Clippyterm 1817 | -10/Subcaves | Learned Research security intel 1817 | -10/Subcaves | Learned Factory stockpile data 1857 | -10/Subcaves | A swath of the cavern ceiling suddenly collapsed 1919 | -10/Subcaves | Discovered new exit (range 10) 1941 | -10/Subcaves | Entered Materials 1941 | -8/Materials | Evolved 4 slots: Propulsion x1, Utility x2, Weapon x1 1942 | -8/Materials | Loaded intel: 12 terminal locations 1970 | -8/Materials | Central database locked down 2082 | -8/Materials | Lost 5 parts (1p1n3w) 2333 | -8/Materials | Core integrity fell below 50% 2504 | -8/Materials | Repaired Carbon-fiber Leg 2543 | -8/Materials | Repaired Lgt. Nuclear Core 2638 | -8/Materials | Discovered new exit (range 4) 3235 | -8/Materials | Entered Factory 3235 | -7/Factory | Accompanied by 1 ally 3235 | -7/Factory | Evolved 2 slots: Utility x2 3460 | -7/Factory | Discovered new exit (range 4) 3506 | -7/Factory | Entered another Factory area 3506 | -6/Factory | Evolved 2 slots: Power x1, Propulsion x1 3990 | -6/Factory | Spotted B-75 Beast 4385 | -6/Factory | Build established: Gunner 4439 | -6/Factory | Destroyed B-75 Beast 4463 | -6/Factory | Lost 8 parts (1p2n4u1w) 4687 | -6/Factory | Build established: Mutant 4778 | -6/Factory | Discovered new exit (range 16) 4810 | -6/Factory | Identified exit to Factory 4812 | -6/Factory | Entered another Factory area 4812 | -5/Factory | Evolved 2 slots: Utility x1, Weapon x1 4842 | -5/Factory | Discovered new exit (range 12) 4848 | -5/Factory | Discovered new exit (range 10) 4929 | -5/Factory | Identified exit to Factory 4959 | -5/Factory | Identified exit to Upper Caves 5011 | -5/Factory | Entered Upper Caves 5280 | -5/Upper Caves | Build established: Gunner 5756 | -5/Upper Caves | Discovered new exit (range 14) 5763 | -5/Upper Caves | Attracted the attention of an 0b10 checkpoint 5778 | -5/Upper Caves | Identified exit to Upper Caves 6109 | -5/Upper Caves | Encountered a Warlord checkpoint 6394 | -5/Upper Caves | Learned Factory garrison access intel 6409 | -5/Upper Caves | Lost 6 parts (1p3n1u1w) 6424 | -5/Upper Caves | Learned location of Armory (-4) 6617 | -5/Upper Caves | Entered another Upper Caves area 6757 | -5/Upper Caves | Learned location of 1 exit from Factory 6996 | -5/Upper Caves | Entered a destroyed Warlord outpost 7151 | -5/Upper Caves | Discovered new exit (range 5) 7160 | -5/Upper Caves | Identified exit to Zhirov 7194 | -5/Upper Caves | Entered Zhirov 7194 | -5/Zhirov | Discovered new exit (range 3) 7198 | -5/Zhirov | Identified exit to Proximity Caves 7219 | -5/Zhirov | Met Zhirov 7269 | -5/Zhirov | Learned location of Quarantine (-3) 7269 | -5/Zhirov | Learned location of Testing (-2) 7269 | -5/Zhirov | Learned location of Command (-1) 7275 | -5/Zhirov | Zhirov requested help retrieving the SGEMP Prototype 7336 | -5/Zhirov | Found Alien Artifact 7336 | -5/Zhirov | Identified Integrated Reactor 7336 | -5/Zhirov | Installed Integrated Reactor, increased core energy generation (+10) 7492 | -5/Zhirov | Entered Proximity Caves 7572 | -4/Proximity Caves | Spotter reported a threat 7621 | -4/Proximity Caves | Attracted the attention of an 0b10 checkpoint 7626 | -4/Proximity Caves | Spotter reported a threat 7942 | -4/Proximity Caves | Discovered exit to Factory (range 9) 8093 | -4/Proximity Caves | Entered Factory 8093 | -4/Factory | Evolved 2 slots: Propulsion x2 8094 | -4/Factory | Identified exit to Armory 8095 | -4/Factory | Loaded intel: 4 garrison access locations 8103 | -4/Factory | Identified exit to Research 8343 | -4/Factory | Search patrols dispatched 8527 | -4/Factory | Sucked down chute 8527 | -4/Factory | Entered Waste 8531 | -4/Waste | Spotted C-40 Crusher 8538 | -4/Waste | Spotted C-40 Crusher 8542 | -4/Waste | Discovered new exit (range 15) 8542 | -4/Waste | Spotted C-40 Crusher 8542 | -4/Waste | Spotted C-40 Crusher 8546 | -4/Waste | Identified exit to Factory 8546 | -4/Waste | Entered Factory 8834 | -4/Factory | Build established: Sprinter 8924 | -4/Factory | Discovered exit to Research (range 9) 8930 | -4/Factory | Entered Research 8930 | -3/Research | Evolved 2 slots: Utility x2 9120 | -3/Research | Fabricated Cld. Nuclear Pulse Thruster? 9276 | -3/Research | Build established: Hacker-Sprinter 9372 | -3/Research | Lost 3 parts (1n1u1w) 9538 | -3/Research | Discovered new exit (range 16) 9543 | -3/Research | Identified exit to Quarantine 9544 | -3/Research | Entered Quarantine 9549 | -3/Quarantine | Found Alien Impact Weapon 9549 | -3/Quarantine | Identified Core Stripper 9557 | -3/Quarantine | Found Alien Slashing Weapon 9557 | -3/Quarantine | Identified Sigix Broadsword 9566 | -3/Quarantine | Lost 8 parts (1p3n2u2w) 9570 | -3/Quarantine | Found Alien Artifact 9572 | -3/Quarantine | Identified Subatomic Replicator 9572 | -3/Quarantine | Used Subatomic Replicator to replicate Triangulator 9605 | -3/Quarantine | Found Alien Artifact 9605 | -3/Quarantine | Identified Terrabomb 9605 | -3/Quarantine | Used Terrabomb 9661 | -3/Quarantine | Identified exit to Research 9689 | -3/Quarantine | Found Alien Artifact 9689 | -3/Quarantine | Identified Core Reset Matrix 9689 | -3/Quarantine | Used Core Reset Matrix 9693 | -3/Quarantine | Detected hypermatrix surge 9693 | -3/Quarantine | Sensed 2 artifacts in vicinity 9719 | -3/Quarantine | Discovered exit to Research (range 7) 9764 | -3/Quarantine | Met incapacitated Sigix Warrior 9764 | -3/Quarantine | Lockdown squad dispatched 9769 | -3/Quarantine | Found Sigix Containment Pod 9787 | -3/Quarantine | Entered Research 9787 | -2/Research | Evolved 2 slots: Propulsion x2 9897 | -2/Research | Spotted B-90 Cyclops 9953 | -2/Research | Identified exit to Testing 9984 | -2/Research | Spotted B-90 Cyclops 10009 | -2/Research | Entered Testing 10037 | -2/Testing | Lost 13 parts (1p8n2u2w) 10059 | -2/Testing | Found Prototype Device 10059 | -2/Testing | Identified Exp. ECM Suite 10098 | -2/Testing | Core integrity fell below 50% 10122 | -2/Testing | Lost 3 parts (1n2u) 10129 | -2/Testing | Found Prototype Launcher 10129 | -2/Testing | Identified Adv. Micro-nuke Launcher 10138 | -2/Testing | System corruption reached 10% 10257 | -2/Testing | Core integrity fell below 20% 10333 | -2/Testing | Destroyed by P-80 Master with Gamma Rifle Last Messages --------------- 10252_ Acquired 108 matter. 10253_ Slug penetrates Wall. 10253_ Penetrated by Slug. 10256_ Slug penetrates Wall. 10257_ ALERT: Potential suspicious activity detected, Programmers report to Testing Zone 6R. 10264_ Slammed into R-10 Processor. 10264_ Destabilizing: Core damaged (-72). 10271_ Drone sends a signal. 10275_ System corrupted: Heat flow error (+156). 10300_ Lgt. Neutrino Core destroyed. 10302_ Door malfunctions. 10305_ Adv. System Shield destroyed. 10309_ Acquired Unknown Energy Cannon. 10309_ Identified Nova Cannon. 10312_ Com. Wheel destroyed. 10319_ System corrupted: Matter fused (-9). 10323_ Focalizer disabled. 10326_ Dropped Arm. Huge Wheel. 10326_ Acquired Arm. Huge Wheel. Map ----- +----------------------------------------------------+ | | | | | | | | | ???########??????????????????????????????????????? | | #??# ??????????????????????????????????????? | | #??# ??????????????????????????????????????? | | #??# ????##########????????????????????????? | | ???# """ "??? # #????????????????????????? | | ???# """" "?? # #????????????????????????? | | ???# """ """ # ##???????????????????????? | | ???# # # +??????????????????????? | | ###########/#### # #??????????????????????? | | # # #??????????????????????? | | / # #??????????????????????? | | ###########+##/" # #??????????????????????? | | ??????? # # #??????????????????????? | | ???????? #######+## #############??????????? | | ???????? #?????# # #??????????? | | ???????? #?????# # """ "#??????????? | | ##?##?? """ #?????# + """ ""#??????????? | | #? """" #?????# # "" ""#??????????? | | ## """" #??#### p # ""#??????????? | | ??# ??" ???# pp# """ ""#??????????? | | ??##????#/##???# # """ T"#??????????? | | " ?????????# ?????# @/ """ ""#??????????? | | " [!???????# ?????# # ""#??????????? | | " #??????# ?????######### ! """ ""#??????????? | | #??????#??????????????# """ ""#??????????? | | ###???????????????????????# """ "#??????????? | | ??????????????????????????# #??????????? | | ??????????????????????????#############??????????? | | ?????????????????????????????????????????????????? | | ?????????????????????????????????????????????????? | | ?????????????????????????????????????????????????? | | ##???????????????????????????????????????????????? | | "#???????????????????????????????????????????????? | | "#???????????????????????????????????????????????? | | #???????????????????????????????????????????????? | | "#???????????????????????????????????????????????? | | ##???????????????????????????????????????????????? | | ?????????????????????????????????????????????????? | | ?????????????????????????????????????????????????? | | ?????????????????????????????????????????????????? | | ?????????????????????????????????????????????????? | | ?????????????????????????????????????????????????? | | ?????????????????????????????????????????????????? | | ?????????????????????????????????????????????????? | | ?????????????????????????????????????????????????? | | ?????????????????????????????????????????????????? | +----------------------------------------------------+ Best States ------------- Heat Dissipation 80 Energy Generation 46 Energy Capacity 500 Matter Stores 450 Matter Capacity 450 Sight Range 22 Robot Scan Range 18 Terrain Scan Density 10 Armor Coverage 225 Resistance: KI 20 Phase Shifting 10 Evasion (%) 74 Targeting Accuracy 16 Target Analysis 8 Recoil Reduction 1 Matter Filtering 30 Kinecelleration 40 Offensive Hacking 28 Defensive Hacking 26 Item Schematics ----------------- Hvy. Regenerative Plating | -2/Testing | Hacked Hvy. Tesla Rifle | -2/Testing | Archive Cld. Phase Cannon | -2/Testing | Archive Robot Schematics ------------------ G-73 Enforcer | -2/Testing | Archive T-07 Excavator | -2/Testing | Archive Fabricated ------------ Cld. Nuclear Pulse Thruster | x1 | -3/Research Repaired ---------- Carbon-fiber Leg | 46% | -8/Materials Lgt. Nuclear Core | 28% | -8/Materials Studied --------- Q-thruster | -2/Testing | Hacked Alien Tech Used ----------------- Integrated Reactor Core Stripper Sigix Broadsword Subatomic Replicator Terrabomb Core Reset Matrix Achievements -------------- Alien Roots Alien Tech Do Not Disturb Dramatic Entrance False Reunion Knowing Is Half The Battle Ooh, Shiny! The Science Guy Thread The Needle Around The Corner Challenges ------------ None Game ------ Seed ArmorMyomerDiverter Manual? 0 Play Time 02:36:22 Cumulative 28.5 hours Start 2026.01.18 @ 11:55:12 End 2026.01.18 @ 19:48:49 Sessions 3 Manual Loads 0 Difficulty Rogue Special Mode None Game No. 35 Rogue 35 Adventurer 0 Explorer 0 Win Type - Total 0 Types 0/0/0/0/0/0/0/0/0/0 Lore% 21 Gallery% 31 Achievement% 23 Wizard Run 0 Options --------- Layout 0 ASCII 0 Keyboard 1 Movement Arrows Keybinds 0 Fullscreen 1 Font 18/SmallcapsGlow Map View 76x50 Zoom Use 0% Tactical HUD 1 Map Filters NONE Filters NONE Steam 1 RUN: ed7a5959-13ca-42e5-a27b-ecd945d51a4d